[Event "Titled Tuesday Blitz January 31 Early 2023"]
[White "Koelle, Tobias"]
[Black "Galvan, Jesus"]
[WhiteFideId "16207378"]
[BlackFideId "3800458"]
[WhiteElo "2432"]
[BlackElo "2074"]
[Result "1-0"]
[Round "02"]
[TimeControl "180+2"]
[Date "2023.01.31"]
[WhiteClock "0:01:42"]
[BlackClock "0:00:01"]

1. e4 {[%clk 0:02:56]}  c5 {[%clk 0:02:47]} 2. Ne2 {[%clk 0:02:56]}  Nc6 {[%clk 0:02:44]} 3. g3 {[%clk 0:02:55]}  Nf6 {[%clk 0:02:27]} 4. Bg2 {[%clk 0:02:55]}  d5 {[%clk 0:02:18]} 5. exd5 {[%clk 0:02:54]}  Nxd5 {[%clk 0:02:19]} 6. O-O {[%clk 0:02:55]}  e6 {[%clk 0:02:17]} 7. d4 {[%clk 0:02:56]}  cxd4 {[%clk 0:02:16]} 8. Nxd4 {[%clk 0:02:56]}  Qb6 {[%clk 0:02:08]} 9. Nxc6 {[%clk 0:02:56]}  bxc6 {[%clk 0:02:05]} 10. c4 {[%clk 0:02:56]}  Nf6 {[%clk 0:02:03]} 11. b3 {[%clk 0:02:56]}  Be7 {[%clk 0:01:57]} 12. Be3 {[%clk 0:02:50]}  Qc7 {[%clk 0:01:56]} 13. Bf4 {[%clk 0:02:48]}  Qb6 {[%clk 0:01:50]} 14. Nc3 {[%clk 0:02:48]}  Bb7 {[%clk 0:01:43]} 15. Na4 {[%clk 0:02:46]}  Qd8 {[%clk 0:01:43]} 16. Qe2 {[%clk 0:02:41]}  O-O {[%clk 0:01:42]} 17. Rfd1 {[%clk 0:02:38]}  Qa5 {[%clk 0:01:42]} 18. Qd2 {[%clk 0:02:31]}  Bb4 {[%clk 0:01:33]} 19. Qc2 {[%clk 0:02:29]}  h6 {[%clk 0:01:28]} 20. a3 {[%clk 0:02:28]}  Be7 {[%clk 0:01:28]} 21. b4 {[%clk 0:02:28]}  Qa6 {[%clk 0:01:25]} 22. Bd6 {[%clk 0:02:22]}  Bxd6 {[%clk 0:01:22]} 23. Rxd6 {[%clk 0:02:23]}  Ne8 {[%clk 0:01:21]} 24. Rd7 {[%clk 0:02:23]}  Rb8 {[%clk 0:01:04]} 25. Rad1 {[%clk 0:02:20]}  Nf6 {[%clk 0:00:55]} 26. Rc7 {[%clk 0:02:19]}  Rfc8 {[%clk 0:00:54]} 27. Re7 {[%clk 0:02:18]}  Re8 {[%clk 0:00:50]} 28. Rxe8+ {[%clk 0:02:18]}  Rxe8 {[%clk 0:00:50]} 29. h3 {[%clk 0:02:18]}  e5 {[%clk 0:00:35]} 30. Rd6 {[%clk 0:02:16]}  Bc8 {[%clk 0:00:17]} 31. Nc5 {[%clk 0:02:12]}  Qxa3 {[%clk 0:00:17]} 32. Bxc6 {[%clk 0:02:08]}  Rf8 {[%clk 0:00:16]} 33. Qb3 {[%clk 0:02:07]}  Qxb3 {[%clk 0:00:15]} 34. Nxb3 {[%clk 0:02:08]}  Bxh3 {[%clk 0:00:15]} 35. Bb7 {[%clk 0:02:05]}  Be6 {[%clk 0:00:15]} 36. Na5 {[%clk 0:02:05]}  Rb8 {[%clk 0:00:11]} 37. c5 {[%clk 0:02:05]}  Ne8 {[%clk 0:00:09]} 38. Ra6 {[%clk 0:02:03]}  Kf8 {[%clk 0:00:08]} 39. c6 {[%clk 0:02:02]}  Ke7 {[%clk 0:00:07]} 40. Rxa7 {[%clk 0:02:02]}  Kd6 {[%clk 0:00:08]} 41. b5 {[%clk 0:01:55]}  Kc5 {[%clk 0:00:07]} 42. Ba6 {[%clk 0:01:55]}  Kd6 {[%clk 0:00:06]} 43. Nb7+ {[%clk 0:01:54]}  Kc7 {[%clk 0:00:06]} 44. Nc5+ {[%clk 0:01:41]}  Kd6 {[%clk 0:00:06]} 45. Nxe6 {[%clk 0:01:42]}  fxe6 {[%clk 0:00:06]} 46. Rd7+ {[%clk 0:01:42]}  Kc5 {[%clk 0:00:03]} 47. c7 {[%clk 0:01:43]}  Nxc7 {[%clk 0:00:02]} 48. Rxc7+ {[%clk 0:01:44]}  Kd6 {[%clk 0:00:02]} 49. Rxg7 {[%clk 0:01:43]}  Rd8 {[%clk 0:00:01]} 50. Bb7 {[%clk 0:01:41]}  Rb8 {[%clk 0:00:01]} 51. Bc6 {[%clk 0:01:41]}  e4 {[%clk 0:00:01]} 52. Rg6 {[%clk 0:01:39]}  Ke5 {[%clk 0:00:02]} 53. Rxh6 {[%clk 0:01:38]}  Rg8 {[%clk 0:00:01]} 54. Rh4 {[%clk 0:01:39]}  e3 {[%clk 0:00:01]} 55. Re4+ {[%clk 0:01:40]}  Kd6 {[%clk 0:00:02]} 56. Rxe3 {[%clk 0:01:41]}  Rb8 {[%clk 0:00:01]} 57. Kg2 {[%clk 0:01:41]}  Ke7 {[%clk 0:00:01]} 58. Rd3 {[%clk 0:01:42]}  Kf6 {[%clk 0:00:02]} 59. f4 {[%clk 0:01:42]}  Kf5 {[%clk 0:00:02]} 60. Kf3 {[%clk 0:01:42]}  Kf6 {[%clk 0:00:02]} 61. Ke4 {[%clk 0:01:41]}  Ke7 {[%clk 0:00:02]} 62. g4 {[%clk 0:01:41]}  Rc8 {[%clk 0:00:01]} 63. g5 {[%clk 0:01:42]}  Rb8 {[%clk 0:00:02]} 64. Ke5 {[%clk 0:01:41]}  Kf7 {[%clk 0:00:02]} 65. Rd7+ {[%clk 0:01:42]}  Kg6 {[%clk 0:00:02]} 66. Be4+ {[%clk 0:01:42]}  Kh5 {[%clk 0:00:03]} 67. Bf3+ {[%clk 0:01:42]}  Kg6 {[%clk 0:00:03]} 68. Kxe6 {[%clk 0:01:41]}  Rxb5 {[%clk 0:00:02]} 69. Be4+ {[%clk 0:01:42]}  Kh5 {[%clk 0:00:01]} 70. g6 {[%clk 0:01:42]}  Rb6+ {[%clk 0:00:01]} 71. Rd6 {[%clk 0:01:42]}  Rb8 {[%clk 0:00:01]} 72. g7 {[%clk 0:01:42]}  Kh6 {[%clk 0:00:01]} 73. Kf7+ {[%clk 0:01:42]} 1-0


[Site "https://www.chess.com"]

[Event "Titled Tuesday Blitz January 31 Early 2023"]
[White "Buscar, Michael"]
[Black "Salimova, Nurgyul"]
[WhiteFideId "2603616"]
[BlackFideId "2915138"]
[WhiteElo "2041"]
[BlackElo "2391"]
[Result "0-1"]
[Round "02"]
[TimeControl "180+2"]
[Date "2023.01.31"]
[WhiteClock "0:00:18"]
[BlackClock "0:00:15"]

1. d4 {[%clk 0:02:59]}  Nf6 {[%clk 0:02:59]} 2. c4 {[%clk 0:02:59]}  e6 {[%clk 0:02:58]} 3. Nf3 {[%clk 0:02:58]}  d5 {[%clk 0:02:58]} 4. g3 {[%clk 0:02:58]}  dxc4 {[%clk 0:02:54]} 5. Qa4+ {[%clk 0:02:57]}  Bd7 {[%clk 0:02:40]} 6. Qxc4 {[%clk 0:02:55]}  Bc6 {[%clk 0:02:22]} 7. Bg2 {[%clk 0:02:52]}  Nbd7 {[%clk 0:02:22]} 8. Bf4 {[%clk 0:02:45]}  Bd6 {[%clk 0:02:18]} 9. Nbd2 {[%clk 0:02:39]}  Bxf4 {[%clk 0:02:09]} 10. gxf4 {[%clk 0:02:39]}  Bd5 {[%clk 0:01:55]} 11. Qc2 {[%clk 0:02:31]}  c5 {[%clk 0:01:54]} 12. O-O {[%clk 0:02:08]}  cxd4 {[%clk 0:01:52]} 13. Nxd4 {[%clk 0:02:08]}  Bxg2 {[%clk 0:01:47]} 14. Kxg2 {[%clk 0:02:09]}  O-O {[%clk 0:01:45]} 15. N2f3 {[%clk 0:02:05]}  Nd5 {[%clk 0:01:42]} 16. e3 {[%clk 0:02:03]}  Rc8 {[%clk 0:01:42]} 17. Qa4 {[%clk 0:02:02]}  a6 {[%clk 0:01:29]} 18. Rac1 {[%clk 0:02:00]}  Nc5 {[%clk 0:01:23]} 19. Qa3 {[%clk 0:01:49]}  Ne4 {[%clk 0:01:20]} 20. Rfd1 {[%clk 0:01:37]}  Qf6 {[%clk 0:01:16]} 21. Ne5 {[%clk 0:01:29]}  Qh4 {[%clk 0:01:11]} 22. Nd3 {[%clk 0:01:04]}  Ndf6 {[%clk 0:00:55]} 23. Qe7 {[%clk 0:00:57]}  Qg4+ {[%clk 0:00:35]} 24. Kh1 {[%clk 0:00:57]}  Qh5 {[%clk 0:00:28]} 25. Rg1 {[%clk 0:00:35]}  Rxc1 {[%clk 0:00:23]} 26. Rxc1 {[%clk 0:00:33]}  Ng4 {[%clk 0:00:19]} 27. h4 {[%clk 0:00:27]}  Ngxf2+ {[%clk 0:00:16]} 28. Nxf2 {[%clk 0:00:27]}  Nxf2+ {[%clk 0:00:17]} 29. Kg2 {[%clk 0:00:28]}  Ne4 {[%clk 0:00:16]} 30. Qxb7 {[%clk 0:00:22]}  Qg4+ {[%clk 0:00:16]} 31. Kf1 {[%clk 0:00:21]}  Qh3+ {[%clk 0:00:15]} 32. Ke2 {[%clk 0:00:19]}  Qg2+ {[%clk 0:00:15]} 33. Ke1 {[%clk 0:00:17]}  Qf2+ {[%clk 0:00:14]} 34. Kd1 {[%clk 0:00:18]}  Qd2# {[%clk 0:00:15]} 0-1


[Site "https://www.chess.com"]

[Event "Titled Tuesday Blitz January 31 Early 2023"]
[White "Klekowski, Maciej"]
[Black "Foerster-Yialamas, Lucas"]
[WhiteFideId "1132717"]
[BlackFideId "30901774"]
[WhiteElo "2477"]
[BlackElo "2151"]
[Result "1-0"]
[Round "02"]
[TimeControl "180+2"]
[Date "2023.01.31"]
[WhiteClock "0:00:27"]
[BlackClock "0:00:13"]

1. g4 {[%clk 0:03:00]}  g5 {[%clk 0:02:52]} 2. Bg2 {[%clk 0:02:58]}  d5 {[%clk 0:02:51]} 3. c4 {[%clk 0:02:55]}  Bxg4 {[%clk 0:02:44]} 4. cxd5 {[%clk 0:02:51]}  Nf6 {[%clk 0:02:38]} 5. Nc3 {[%clk 0:02:51]}  Qd7 {[%clk 0:02:35]} 6. h4 {[%clk 0:02:50]}  gxh4 {[%clk 0:02:20]} 7. Rxh4 {[%clk 0:02:51]}  h5 {[%clk 0:02:19]} 8. Qb3 {[%clk 0:02:50]}  c6 {[%clk 0:02:15]} 9. f3 {[%clk 0:02:48]}  Bf5 {[%clk 0:02:12]} 10. e4 {[%clk 0:02:46]}  Rg8 {[%clk 0:02:12]} 11. Kf1 {[%clk 0:02:45]}  Bh7 {[%clk 0:02:10]} 12. d4 {[%clk 0:02:40]}  cxd5 {[%clk 0:02:10]} 13. Bh3 {[%clk 0:02:35]}  e6 {[%clk 0:02:07]} 14. e5 {[%clk 0:02:28]}  Bd3+ {[%clk 0:02:02]} 15. Nce2 {[%clk 0:02:20]}  Bc4 {[%clk 0:02:02]} 16. Qc2 {[%clk 0:02:19]}  Ne4 {[%clk 0:01:45]} 17. fxe4 {[%clk 0:02:17]}  Be7 {[%clk 0:01:40]} 18. Rxh5 {[%clk 0:02:17]}  Nc6 {[%clk 0:01:40]} 19. Be3 {[%clk 0:02:12]}  Nb4 {[%clk 0:01:36]} 20. Qd2 {[%clk 0:02:12]}  Nd3 {[%clk 0:01:28]} 21. b3 {[%clk 0:01:55]}  Bb4 {[%clk 0:01:25]} 22. Qc2 {[%clk 0:01:55]}  Bb5 {[%clk 0:01:19]} 23. a3 {[%clk 0:01:55]}  Rc8 {[%clk 0:01:16]} 24. Qb1 {[%clk 0:01:38]}  Ba5 {[%clk 0:01:04]} 25. b4 {[%clk 0:01:37]}  Bd8 {[%clk 0:01:03]} 26. a4 {[%clk 0:01:36]}  Bc4 {[%clk 0:00:59]} 27. Ra3 {[%clk 0:01:36]}  dxe4 {[%clk 0:00:57]} 28. Rc3 {[%clk 0:01:29]}  Qd5 {[%clk 0:00:57]} 29. Bg2 {[%clk 0:01:21]}  f5 {[%clk 0:00:51]} 30. Nh3 {[%clk 0:01:11]}  Rg4 {[%clk 0:00:49]} 31. Kg1 {[%clk 0:01:08]}  Rc7 {[%clk 0:00:44]} 32. Kh1 {[%clk 0:01:08]}  Rcg7 {[%clk 0:00:40]} 33. Nef4 {[%clk 0:00:55]}  Qc6 {[%clk 0:00:28]} 34. b5 {[%clk 0:00:55]}  Qc8 {[%clk 0:00:24]} 35. Rh8+ {[%clk 0:00:52]}  Kf7 {[%clk 0:00:15]} 36. d5 {[%clk 0:00:46]}  Rg8 {[%clk 0:00:09]} 37. dxe6+ {[%clk 0:00:45]}  Kf8 {[%clk 0:00:09]} 38. Rxg8+ {[%clk 0:00:40]}  Kxg8 {[%clk 0:00:10]} 39. Nxd3 {[%clk 0:00:37]}  exd3 {[%clk 0:00:11]} 40. Nf4 {[%clk 0:00:33]}  Rh4+ {[%clk 0:00:09]} 41. Kg1 {[%clk 0:00:33]}  Rxf4 {[%clk 0:00:09]} 42. Bxf4 {[%clk 0:00:33]}  Qc5+ {[%clk 0:00:09]} 43. Kh2 {[%clk 0:00:34]}  Qd4 {[%clk 0:00:10]} 44. Rxc4 {[%clk 0:00:31]}  Qxc4 {[%clk 0:00:09]} 45. Qc1 {[%clk 0:00:32]}  Qxe6 {[%clk 0:00:07]} 46. Qe3 {[%clk 0:00:29]}  Qe7 {[%clk 0:00:06]} 47. Bd5+ {[%clk 0:00:25]}  Kf8 {[%clk 0:00:03]} 48. Qg3 {[%clk 0:00:23]}  Qh7+ {[%clk 0:00:01]} 49. Qh3 {[%clk 0:00:23]}  Qxh3+ {[%clk 0:00:01]} 50. Kxh3 {[%clk 0:00:24]}  Ba5 {[%clk 0:00:01]} 51. Bb3 {[%clk 0:00:24]}  d2 {[%clk 0:00:02]} 52. Kg3 {[%clk 0:00:23]}  Ke7 {[%clk 0:00:02]} 53. Kf3 {[%clk 0:00:24]}  a6 {[%clk 0:00:02]} 54. bxa6 {[%clk 0:00:23]}  bxa6 {[%clk 0:00:03]} 55. Ke2 {[%clk 0:00:24]}  Bb4 {[%clk 0:00:03]} 56. Bxd2 {[%clk 0:00:23]}  Bc5 {[%clk 0:00:04]} 57. Bf4 {[%clk 0:00:23]}  a5 {[%clk 0:00:04]} 58. Kd3 {[%clk 0:00:24]}  Bb4 {[%clk 0:00:05]} 59. Kc4 {[%clk 0:00:24]}  Be1 {[%clk 0:00:05]} 60. Kd5 {[%clk 0:00:25]}  Bb4 {[%clk 0:00:05]} 61. Bc2 {[%clk 0:00:25]}  Bc3 {[%clk 0:00:04]} 62. Bxf5 {[%clk 0:00:25]}  Bb4 {[%clk 0:00:04]} 63. Bg5+ {[%clk 0:00:26]}  Kf7 {[%clk 0:00:05]} 64. e6+ {[%clk 0:00:26]}  Kg7 {[%clk 0:00:06]} 65. e7 {[%clk 0:00:24]}  Kf7 {[%clk 0:00:06]} 66. Bd7 {[%clk 0:00:24]}  Bxe7 {[%clk 0:00:06]} 67. Bxe7 {[%clk 0:00:24]}  Kxe7 {[%clk 0:00:07]} 68. Kc6 {[%clk 0:00:25]}  Kd8 {[%clk 0:00:07]} 69. Bh3 {[%clk 0:00:25]}  Ke7 {[%clk 0:00:07]} 70. Kc7 {[%clk 0:00:25]}  Ke8 {[%clk 0:00:07]} 71. Kb6 {[%clk 0:00:25]}  Kd8 {[%clk 0:00:08]} 72. Kxa5 {[%clk 0:00:26]}  Kc7 {[%clk 0:00:09]} 73. Ka6 {[%clk 0:00:26]}  Kb8 {[%clk 0:00:09]} 74. Kb6 {[%clk 0:00:26]}  Ka8 {[%clk 0:00:10]} 75. Bg2+ {[%clk 0:00:26]}  Kb8 {[%clk 0:00:11]} 76. a5 {[%clk 0:00:27]}  Kc8 {[%clk 0:00:12]} 77. Bc6 {[%clk 0:00:27]}  Kb8 {[%clk 0:00:13]} 78. a6 {[%clk 0:00:27]} 1-0


[Site "https://www.chess.com"]

[Event "Titled Tuesday Blitz January 31 Early 2023"]
[White "Andreev, Konstantin"]
[Black "Nazari, Arad"]
[WhiteFideId "24239305"]
[BlackFideId "12577324"]
[WhiteElo "2195"]
[BlackElo "2367"]
[Result "0-1"]
[Round "02"]
[TimeControl "180+2"]
[Date "2023.01.31"]
[WhiteClock "0:00:01"]
[BlackClock "0:00:19"]

1. e4 {[%clk 0:02:59]}  c5 {[%clk 0:03:00]} 2. Nf3 {[%clk 0:02:59]}  d6 {[%clk 0:03:00]} 3. d4 {[%clk 0:02:59]}  cxd4 {[%clk 0:03:01]} 4. Nxd4 {[%clk 0:02:59]}  Nf6 {[%clk 0:03:02]} 5. Nc3 {[%clk 0:03:00]}  a6 {[%clk 0:03:03]} 6. h4 {[%clk 0:03:00]}  e5 {[%clk 0:02:58]} 7. Nb3 {[%clk 0:03:00]}  Be7 {[%clk 0:02:55]} 8. Bg5 {[%clk 0:03:01]}  Be6 {[%clk 0:02:55]} 9. Bxf6 {[%clk 0:03:01]}  Bxf6 {[%clk 0:02:55]} 10. g3 {[%clk 0:03:01]}  Nd7 {[%clk 0:02:53]} 11. Qd3 {[%clk 0:03:01]}  Qc7 {[%clk 0:02:52]} 12. O-O-O {[%clk 0:03:02]}  Be7 {[%clk 0:02:51]} 13. f4 {[%clk 0:02:57]}  b5 {[%clk 0:02:43]} 14. Kb1 {[%clk 0:02:54]}  Rc8 {[%clk 0:02:38]} 15. f5 {[%clk 0:02:42]}  Bc4 {[%clk 0:02:37]} 16. Qd2 {[%clk 0:02:42]}  b4 {[%clk 0:02:27]} 17. Nd5 {[%clk 0:02:22]}  Bxd5 {[%clk 0:02:28]} 18. exd5 {[%clk 0:02:23]}  a5 {[%clk 0:02:21]} 19. g4 {[%clk 0:02:20]}  Nf6 {[%clk 0:02:11]} 20. Bb5+ {[%clk 0:02:18]}  Kf8 {[%clk 0:02:11]} 21. Qe2 {[%clk 0:02:10]}  h5 {[%clk 0:01:35]} 22. g5 {[%clk 0:02:09]}  Ng4 {[%clk 0:01:36]} 23. Bc6 {[%clk 0:01:58]}  Qb6 {[%clk 0:01:32]} 24. Rdf1 {[%clk 0:01:51]}  Bd8 {[%clk 0:01:22]} 25. Rf3 {[%clk 0:01:48]}  f6 {[%clk 0:01:16]} 26. g6 {[%clk 0:01:45]}  Ke7 {[%clk 0:01:06]} 27. Nd2 {[%clk 0:01:39]}  a4 {[%clk 0:00:59]} 28. a3 {[%clk 0:01:14]}  Rb8 {[%clk 0:00:46]} 29. Nc4 {[%clk 0:00:47]}  Qc5 {[%clk 0:00:46]} 30. axb4 {[%clk 0:00:43]}  Rxb4 {[%clk 0:00:47]} 31. Rc3 {[%clk 0:00:40]}  Ba5 {[%clk 0:00:34]} 32. Rd1 {[%clk 0:00:02]}  Rhb8 {[%clk 0:00:31]} 33. b3 {[%clk 0:00:02]}  axb3 {[%clk 0:00:22]} 34. Nxe5 {[%clk 0:00:01]}  bxc2+ {[%clk 0:00:19]} 0-1


[Site "https://www.chess.com"]

[Event "Titled Tuesday Blitz January 31 Early 2023"]
[White "Sammed Jaykumar, Shete"]
[Black "Mohammed, Dilshad"]
[WhiteFideId "5073421"]
[BlackFideId "5050421"]
[WhiteElo "2440"]
[BlackElo "2103"]
[Result "1-0"]
[Round "02"]
[TimeControl "180+2"]
[Date "2023.01.31"]
[WhiteClock "0:01:01"]
[BlackClock "0:00:40"]

1. c4 {[%clk 0:02:59]}  c5 {[%clk 0:02:57]} 2. g3 {[%clk 0:02:57]}  g6 {[%clk 0:02:57]} 3. Bg2 {[%clk 0:02:57]}  Bg7 {[%clk 0:02:58]} 4. Nc3 {[%clk 0:02:57]}  Nc6 {[%clk 0:02:58]} 5. d3 {[%clk 0:02:57]}  d6 {[%clk 0:02:58]} 6. Nh3 {[%clk 0:02:57]}  Nf6 {[%clk 0:02:57]} 7. Nf4 {[%clk 0:02:55]}  O-O {[%clk 0:02:54]} 8. h4 {[%clk 0:02:54]}  h5 {[%clk 0:02:50]} 9. O-O {[%clk 0:02:53]}  e6 {[%clk 0:02:47]} 10. Bd2 {[%clk 0:02:42]}  Ne7 {[%clk 0:02:39]} 11. Rb1 {[%clk 0:02:38]}  Rb8 {[%clk 0:02:39]} 12. b4 {[%clk 0:02:36]}  cxb4 {[%clk 0:02:37]} 13. Rxb4 {[%clk 0:02:35]}  d5 {[%clk 0:02:37]} 14. cxd5 {[%clk 0:02:34]}  Nexd5 {[%clk 0:02:37]} 15. Nfxd5 {[%clk 0:02:32]}  Nxd5 {[%clk 0:02:38]} 16. Nxd5 {[%clk 0:02:32]}  exd5 {[%clk 0:02:39]} 17. Bf4 {[%clk 0:02:31]}  Qe7 {[%clk 0:02:25]} 18. Rb5 {[%clk 0:01:53]}  Ra8 {[%clk 0:02:19]} 19. Rxd5 {[%clk 0:01:53]}  Be6 {[%clk 0:02:18]} 20. Bd6 {[%clk 0:01:51]}  Qd7 {[%clk 0:02:06]} 21. Bxf8 {[%clk 0:01:49]}  Bxd5 {[%clk 0:02:06]} 22. Bxg7 {[%clk 0:01:48]}  Bxg2 {[%clk 0:02:06]} 23. Kxg2 {[%clk 0:01:48]}  Kxg7 {[%clk 0:02:06]} 24. Qb3 {[%clk 0:01:40]}  Re8 {[%clk 0:02:05]} 25. e4 {[%clk 0:01:40]}  Re6 {[%clk 0:01:59]} 26. Rd1 {[%clk 0:01:36]}  Rb6 {[%clk 0:01:59]} 27. Qc3+ {[%clk 0:01:35]}  Kh7 {[%clk 0:01:58]} 28. d4 {[%clk 0:01:34]}  Qa4 {[%clk 0:01:56]} 29. Rd2 {[%clk 0:01:33]}  Rc6 {[%clk 0:01:55]} 30. Qf3 {[%clk 0:01:30]}  Kg7 {[%clk 0:01:52]} 31. d5 {[%clk 0:01:29]}  Rf6 {[%clk 0:01:52]} 32. Qd3 {[%clk 0:01:25]}  Qd7 {[%clk 0:01:26]} 33. e5 {[%clk 0:01:24]}  Rf5 {[%clk 0:01:26]} 34. f4 {[%clk 0:01:24]}  Qa4 {[%clk 0:01:07]} 35. Qd4 {[%clk 0:01:20]}  Qa3 {[%clk 0:00:54]} 36. d6 {[%clk 0:01:19]}  g5 {[%clk 0:00:54]} 37. hxg5 {[%clk 0:01:07]}  h4 {[%clk 0:00:53]} 38. Qd3 {[%clk 0:01:07]}  Qb4 {[%clk 0:00:47]} 39. d7 {[%clk 0:01:05]}  hxg3 {[%clk 0:00:44]} 40. d8=Q {[%clk 0:01:04]}  Qxf4 {[%clk 0:00:44]} 41. Qf6+ {[%clk 0:01:03]}  Rxf6 {[%clk 0:00:41]} 42. gxf6+ {[%clk 0:01:02]}  Kh6 {[%clk 0:00:40]} 43. Re2 {[%clk 0:01:01]} 1-0


[Site "https://www.chess.com"]

[Event "Titled Tuesday Blitz January 31 Early 2023"]
[White "UnknownMagician"]
[Black "Jiganchine, Roman"]
[BlackFideId "2603667"]
[WhiteElo "2681"]
[BlackElo "2205"]
[Result "1-0"]
[Round "02"]
[TimeControl "180+2"]
[Date "2023.01.31"]
[WhiteClock "0:01:24"]
[BlackClock "0:00:09"]

1. c4 {[%clk 0:03:00]}  c6 {[%clk 0:02:57]} 2. Nf3 {[%clk 0:03:00]}  d5 {[%clk 0:02:57]} 3. e3 {[%clk 0:03:01]}  Nf6 {[%clk 0:02:57]} 4. Nc3 {[%clk 0:03:00]}  Bf5 {[%clk 0:02:54]} 5. d4 {[%clk 0:02:55]}  e6 {[%clk 0:02:54]} 6. Nh4 {[%clk 0:02:54]}  Bg6 {[%clk 0:02:53]} 7. Nxg6 {[%clk 0:02:52]}  hxg6 {[%clk 0:02:53]} 8. g3 {[%clk 0:02:51]}  Nbd7 {[%clk 0:02:49]} 9. Bg2 {[%clk 0:02:48]}  Bd6 {[%clk 0:02:49]} 10. O-O {[%clk 0:02:42]}  a5 {[%clk 0:02:36]} 11. b3 {[%clk 0:02:38]}  Bb4 {[%clk 0:02:35]} 12. Bb2 {[%clk 0:02:38]}  O-O {[%clk 0:02:27]} 13. a3 {[%clk 0:02:38]}  Be7 {[%clk 0:02:27]} 14. Qe2 {[%clk 0:02:34]}  dxc4 {[%clk 0:02:20]} 15. bxc4 {[%clk 0:02:33]}  e5 {[%clk 0:02:19]} 16. c5 {[%clk 0:02:27]}  Re8 {[%clk 0:02:13]} 17. Qc4 {[%clk 0:02:24]}  Qc7 {[%clk 0:02:10]} 18. Rfe1 {[%clk 0:02:23]}  Bf8 {[%clk 0:02:03]} 19. Ne4 {[%clk 0:02:13]}  Rad8 {[%clk 0:01:28]} 20. Ng5 {[%clk 0:02:11]}  Re7 {[%clk 0:01:26]} 21. Rad1 {[%clk 0:02:11]}  Rde8 {[%clk 0:01:04]} 22. dxe5 {[%clk 0:02:03]}  Nxe5 {[%clk 0:01:04]} 23. Qf4 {[%clk 0:02:01]}  Qb8 {[%clk 0:00:37]} 24. Rd6 {[%clk 0:01:53]}  Nh5 {[%clk 0:00:34]} 25. Qh4 {[%clk 0:01:49]}  f6 {[%clk 0:00:33]} 26. Nf3 {[%clk 0:01:39]}  Nxf3+ {[%clk 0:00:33]} 27. Bxf3 {[%clk 0:01:40]}  Re6 {[%clk 0:00:25]} 28. Rxe6 {[%clk 0:01:36]}  Rxe6 {[%clk 0:00:25]} 29. Bd1 {[%clk 0:01:26]}  Re8 {[%clk 0:00:14]} 30. Bb3+ {[%clk 0:01:25]}  Kh7 {[%clk 0:00:14]} 31. g4 {[%clk 0:01:26]}  Bxc5 {[%clk 0:00:10]} 32. gxh5 {[%clk 0:01:24]}  gxh5 {[%clk 0:00:09]} 33. Qxh5# {[%clk 0:01:24]} 1-0


[Site "https://www.chess.com"]

[Event "Titled Tuesday Blitz January 31 Early 2023"]
[White "Piesik, Piotr"]
[Black "Moskvin, Anatoly"]
[WhiteFideId "1136194"]
[BlackFideId "24199990"]
[WhiteElo "2426"]
[BlackElo "2189"]
[Result "1-0"]
[Round "02"]
[TimeControl "180+2"]
[Date "2023.01.31"]
[WhiteClock "0:01:08"]
[BlackClock "0:00:01"]

1. Nf3 {[%clk 0:02:58]}  d6 {[%clk 0:02:59]} 2. d4 {[%clk 0:02:57]}  Bg4 {[%clk 0:02:59]} 3. e4 {[%clk 0:02:57]}  g6 {[%clk 0:02:57]} 4. h3 {[%clk 0:02:57]}  Bxf3 {[%clk 0:02:57]} 5. Qxf3 {[%clk 0:02:57]}  Bg7 {[%clk 0:02:57]} 6. c3 {[%clk 0:02:58]}  e6 {[%clk 0:02:48]} 7. Bd3 {[%clk 0:02:55]}  Ne7 {[%clk 0:02:44]} 8. O-O {[%clk 0:02:55]}  O-O {[%clk 0:02:40]} 9. Bg5 {[%clk 0:02:53]}  h6 {[%clk 0:02:39]} 10. Be3 {[%clk 0:02:53]}  Nd7 {[%clk 0:02:21]} 11. Nd2 {[%clk 0:02:52]}  e5 {[%clk 0:02:02]} 12. Qg3 {[%clk 0:02:44]}  Nc6 {[%clk 0:01:43]} 13. Nb3 {[%clk 0:02:30]}  a5 {[%clk 0:01:41]} 14. a4 {[%clk 0:02:29]}  Nf6 {[%clk 0:01:32]} 15. Qh4 {[%clk 0:02:16]}  g5 {[%clk 0:01:28]} 16. Qg3 {[%clk 0:02:15]}  Nh5 {[%clk 0:01:27]} 17. Qf3 {[%clk 0:02:04]}  Nf4 {[%clk 0:01:28]} 18. Rfd1 {[%clk 0:02:04]}  Qf6 {[%clk 0:01:18]} 19. Bc4 {[%clk 0:02:00]}  Qg6 {[%clk 0:01:11]} 20. Kh2 {[%clk 0:01:58]}  h5 {[%clk 0:01:00]} 21. Bxf4 {[%clk 0:01:39]}  exf4 {[%clk 0:01:01]} 22. g4 {[%clk 0:01:30]}  hxg4 {[%clk 0:00:40]} 23. Qxg4 {[%clk 0:01:31]}  Rae8 {[%clk 0:00:25]} 24. Nd2 {[%clk 0:01:29]}  Ne7 {[%clk 0:00:21]} 25. Rg1 {[%clk 0:01:28]}  Bh6 {[%clk 0:00:10]} 26. Nf3 {[%clk 0:01:19]}  d5 {[%clk 0:00:01]} 27. exd5 {[%clk 0:01:08]} 1-0


[Site "https://www.chess.com"]

[Event "Titled Tuesday Blitz January 31 Early 2023"]
[White "Xie, Bryan"]
[Black "Begmuratov, Alisher"]
[WhiteFideId "30941296"]
[BlackFideId "14203367"]
[WhiteElo "2361"]
[BlackElo "2395"]
[Result "0-1"]
[Round "02"]
[TimeControl "180+2"]
[Date "2023.01.31"]
[WhiteClock "0:00:02"]
[BlackClock "0:01:58"]

1. d4 {[%clk 0:02:47]}  Nf6 {[%clk 0:02:58]} 2. Nf3 {[%clk 0:02:39]}  e6 {[%clk 0:02:59]} 3. Bf4 {[%clk 0:02:24]}  b6 {[%clk 0:03:00]} 4. e3 {[%clk 0:01:55]}  Bb7 {[%clk 0:02:59]} 5. Nbd2 {[%clk 0:01:33]}  Be7 {[%clk 0:02:59]} 6. Bd3 {[%clk 0:01:32]}  O-O {[%clk 0:02:59]} 7. O-O {[%clk 0:01:31]}  c5 {[%clk 0:02:59]} 8. c3 {[%clk 0:01:29]}  d5 {[%clk 0:02:58]} 9. h3 {[%clk 0:01:27]}  Nbd7 {[%clk 0:02:58]} 10. Bh2 {[%clk 0:01:21]}  Ne4 {[%clk 0:02:56]} 11. Ne5 {[%clk 0:01:15]}  Nxe5 {[%clk 0:02:55]} 12. Bxe5 {[%clk 0:01:04]}  Nxd2 {[%clk 0:02:52]} 13. Qxd2 {[%clk 0:01:03]}  Bd6 {[%clk 0:02:52]} 14. Bxd6 {[%clk 0:00:53]}  Qxd6 {[%clk 0:02:53]} 15. Rfe1 {[%clk 0:00:48]}  e5 {[%clk 0:02:51]} 16. dxe5 {[%clk 0:00:47]}  Qxe5 {[%clk 0:02:52]} 17. Rad1 {[%clk 0:00:41]}  Rfe8 {[%clk 0:02:51]} 18. Qc2 {[%clk 0:00:33]}  g6 {[%clk 0:02:48]} 19. c4 {[%clk 0:00:26]}  Rad8 {[%clk 0:02:43]} 20. cxd5 {[%clk 0:00:26]}  Qxd5 {[%clk 0:02:42]} 21. Bf1 {[%clk 0:00:22]}  Qxa2 {[%clk 0:02:42]} 22. Bc4 {[%clk 0:00:19]}  Qa5 {[%clk 0:02:38]} 23. Ra1 {[%clk 0:00:11]}  Qb4 {[%clk 0:02:37]} 24. Reb1 {[%clk 0:00:03]}  Rd2 {[%clk 0:02:34]} 25. Qb3 {[%clk 0:00:02]}  Qxb3 {[%clk 0:02:34]} 26. Bxb3 {[%clk 0:00:03]}  a5 {[%clk 0:02:34]} 27. Ra4 {[%clk 0:00:02]}  Red8 {[%clk 0:02:24]} 28. Rf4 {[%clk 0:00:02]}  Bd5 {[%clk 0:02:24]} 29. Bxd5 {[%clk 0:00:03]}  R8xd5 {[%clk 0:02:23]} 30. Rf6 {[%clk 0:00:03]}  Rd6 {[%clk 0:02:20]} 31. Rf4 {[%clk 0:00:03]}  Rd1+ {[%clk 0:02:15]} 32. Rxd1 {[%clk 0:00:03]}  Rxd1+ {[%clk 0:02:11]} 33. Kh2 {[%clk 0:00:04]}  Rd2 {[%clk 0:02:06]} 34. b3 {[%clk 0:00:03]}  Rb2 {[%clk 0:02:02]} 35. Rf6 {[%clk 0:00:02]}  Rxb3 {[%clk 0:01:58]} 0-1


[Site "https://www.chess.com"]